[Event "Early-Titled-Tuesday-Blitz-March-12-2024"]
[Site "Chess.com"]
[Date "2024.03.12"]
[Round "8"]
[White "agvega14"]
[Black "Gabcur"]
[Result "0-1"]
[WhiteElo "2190"]
[BlackElo "2311"]
[TimeControl "180+1"]
[EndTime "9:26:39 PDT"]
[Termination "Gabcur won on time"]

1. d4 {[%clk 0:03:00.9]} 1... d5 {[%clk 0:02:51.7]} 2. c4 {[%clk 0:02:58.5]}
2... c6 {[%clk 0:02:51.3]} 3. Nc3 {[%clk 0:02:58.2]} 3... Nf6 {[%clk 0:02:51.1]}
4. e3 {[%clk 0:02:57.9]} 4... e6 {[%clk 0:02:51.1]} 5. Nf3 {[%clk 0:02:52.2]}
5... Nbd7 {[%clk 0:02:50.6]} 6. Bd3 {[%clk 0:02:52.4]} 6... dxc4 {[%clk
0:02:48.2]} 7. Bxc4 {[%clk 0:02:52.1]} 7... b5 {[%clk 0:02:49]} 8. Bd3 {[%clk
0:02:51.7]} 8... Bb7 {[%clk 0:02:49.8]} 9. e4 {[%clk 0:02:49.1]} 9... b4 {[%clk
0:02:49.4]} 10. Na4 {[%clk 0:02:48.8]} 10... c5 {[%clk 0:02:44.8]} 11. e5 {[%clk
0:02:37.6]} 11... Nd5 {[%clk 0:02:31.9]} 12. O-O {[%clk 0:02:27.3]} 12... cxd4
{[%clk 0:02:23.8]} 13. Bg5 {[%clk 0:02:19]} 13... Be7 {[%clk 0:02:20.7]} 14. Qd2
{[%clk 0:02:07]} 14... h6 {[%clk 0:02:18.6]} 15. Bxe7 {[%clk 0:01:59.1]} 15...
Qxe7 {[%clk 0:02:19.5]} 16. Rfe1 {[%clk 0:01:38.3]} 16... O-O {[%clk 0:01:53.6]}
17. Nxd4 {[%clk 0:01:30.8]} 17... Rac8 {[%clk 0:01:51.8]} 18. Nb5 {[%clk
0:01:04.1]} 18... Ba8 {[%clk 0:01:36.6]} 19. Nxa7 {[%clk 0:00:44.1]} 19... Rb8
{[%clk 0:01:27]} 20. Nb5 {[%clk 0:00:42.8]} 20... Qh4 {[%clk 0:01:22.4]} 21. g3
{[%clk 0:00:35.1]} 21... Qh5 {[%clk 0:01:17.2]} 22. Be2 {[%clk 0:00:33.4]} 22...
Qxe5 {[%clk 0:01:08]} 23. Bf3 {[%clk 0:00:30.1]} 23... Qf6 {[%clk 0:01:05]} 24.
Nd4 {[%clk 0:00:29.1]} 24... e5 {[%clk 0:00:48.8]} 25. Bxd5 {[%clk 0:00:19.4]}
25... Bxd5 {[%clk 0:00:48]} 26. Nf5 {[%clk 0:00:11.5]} 26... Bc6 {[%clk
0:00:41.7]} 27. Qd6 {[%clk 0:00:04.9]} 27... Bxa4 {[%clk 0:00:35.8]} 28. Qxf6
{[%clk 0:00:03.8]} 28... gxf6 {[%clk 0:00:29]} 29. b3 {[%clk 0:00:03]} 29... Bc6
{[%clk 0:00:25.3]} 30. Ne7+ {[%clk 0:00:02.3]} 30... Kg7 {[%clk 0:00:24.3]} 31.
Nxc6 {[%clk 0:00:03.2]} 31... Rb6 {[%clk 0:00:22.6]} 32. Ne7 {[%clk 0:00:02]}
32... Nc5 {[%clk 0:00:21.2]} 33. Nf5+ {[%clk 0:00:01.4]} 33... Kg6 {[%clk
0:00:20.1]} 34. Ne3 {[%clk 0:00:01.4]} 34... Ne6 {[%clk 0:00:19.7]} 0-1

[Event "Early-Titled-Tuesday-Blitz-March-12-2024"]
[Site "Chess.com"]
[Date "2024.03.12"]
[Round "8"]
[White "IwkooO"]
[Black "temus_galaktionov"]
[Result "1/2-1/2"]
[WhiteElo "2685"]
[BlackElo "2861"]
[TimeControl "180+1"]
[EndTime "9:26:40 PDT"]
[Termination "Game drawn by agreement"]

1. e4 {[%clk 0:02:26.8]} 1... c6 {[%clk 0:03:00.9]} 2. d4 {[%clk 0:02:25.4]}
2... g6 {[%clk 0:02:57.6]} 3. Nc3 {[%clk 0:02:26.3]} 3... Bg7 {[%clk 0:02:57.6]}
4. f4 {[%clk 0:02:25.9]} 4... d6 {[%clk 0:02:58.5]} 5. Be3 {[%clk 0:02:26.3]}
5... Nd7 {[%clk 0:02:59.1]} 6. Nf3 {[%clk 0:02:26.6]} 6... e5 {[%clk 0:03:00]}
7. Qd2 {[%clk 0:02:26.5]} 7... Ngf6 {[%clk 0:02:59.3]} 8. dxe5 {[%clk 0:02:21]}
8... dxe5 {[%clk 0:03:00.2]} 9. Nxe5 {[%clk 0:02:21.4]} 9... Nxe5 {[%clk
0:02:59.4]} 10. Qxd8+ {[%clk 0:02:21.7]} 10... Kxd8 {[%clk 0:03:00.3]} 11. fxe5
{[%clk 0:02:22.1]} 11... Ng4 {[%clk 0:03:00.6]} 12. Bg5+ {[%clk 0:02:14.7]}
12... Ke8 {[%clk 0:03:00.2]} 13. Bc4 {[%clk 0:02:05.4]} 13... Nxe5 {[%clk
0:02:59.2]} 14. Bb3 {[%clk 0:02:05.4]} 14... h6 {[%clk 0:02:55.3]} 15. Bf4
{[%clk 0:02:01.8]} 15... Ke7 {[%clk 0:02:53.9]} 16. O-O {[%clk 0:02:00.6]} 16...
Be6 {[%clk 0:02:53.7]} 17. Rad1 {[%clk 0:01:45.6]} 17... Rad8 {[%clk 0:02:51.4]}
18. Be3 {[%clk 0:01:45.1]} 18... b6 {[%clk 0:02:50.3]} 19. h3 {[%clk 0:01:44]}
19... Nc4 {[%clk 0:02:45.7]} 20. Bc1 {[%clk 0:01:40.5]} 20... b5 {[%clk
0:02:26]} 21. Rd3 {[%clk 0:01:37.6]} 21... Ne5 {[%clk 0:02:23.3]} 22. Rxd8
{[%clk 0:01:35.5]} 22... Rxd8 {[%clk 0:02:24.2]} 23. Be3 {[%clk 0:01:35.9]}
23... Nc4 {[%clk 0:02:20.6]} 24. Bxa7 {[%clk 0:01:31.3]} 24... Nxb2 {[%clk
0:02:20]} 25. Bc5+ {[%clk 0:01:31.9]} 25... Kd7 {[%clk 0:02:12.4]} 26. Ne2
{[%clk 0:01:29.5]} 26... Na4 {[%clk 0:01:47.7]} 27. Rd1+ {[%clk 0:01:12]} 27...
Ke8 {[%clk 0:01:43.2]} 28. Rxd8+ {[%clk 0:01:11.2]} 28... Kxd8 {[%clk
0:01:44.1]} 29. Bxe6 {[%clk 0:01:11.6]} 29... fxe6 {[%clk 0:01:39]} 30. Be3
{[%clk 0:01:10.3]} 30... Kd7 {[%clk 0:01:34.3]} 31. Kf2 {[%clk 0:01:07.5]} 31...
Kd6 {[%clk 0:01:31.1]} 32. Kf3 {[%clk 0:01:02.1]} 32... c5 {[%clk 0:01:28.7]}
33. h4 {[%clk 0:01:02.3]} 33... b4 {[%clk 0:01:22.3]} 34. Nf4 {[%clk 0:00:58.1]}
34... Nc3 {[%clk 0:01:22]} 35. Nxg6 {[%clk 0:00:57.2]} 35... Nxa2 {[%clk
0:01:21.6]} 36. Bf4+ {[%clk 0:00:54.5]} 36... Kc6 {[%clk 0:01:21.6]} 37. Be5
{[%clk 0:00:47.4]} 37... Bxe5 {[%clk 0:01:17.4]} 38. Nxe5+ {[%clk 0:00:48.3]}
38... Kd6 {[%clk 0:01:17.9]} 39. Nc4+ {[%clk 0:00:47.7]} 39... Ke7 {[%clk
0:01:18.1]} 40. g4 {[%clk 0:00:48.3]} 40... Kf6 {[%clk 0:01:15.6]} 41. Kf4
{[%clk 0:00:45.8]} 41... Nc3 {[%clk 0:01:14.5]} 42. g5+ {[%clk 0:00:46.4]} 42...
hxg5+ {[%clk 0:01:14.5]} 43. hxg5+ {[%clk 0:00:47.3]} 43... Kg6 {[%clk 0:01:12]}
44. Ne5+ {[%clk 0:00:47.6]} 44... Kg7 {[%clk 0:01:12.3]} 45. Nd3 {[%clk
0:00:48.5]} 45... Ne2+ {[%clk 0:01:10.4]} 46. Ke5 {[%clk 0:00:47.6]} 46... Nd4
{[%clk 0:01:10.4]} 47. Nxb4 {[%clk 0:00:22.5]} 47... Kg6 {[%clk 0:00:51.4]} 48.
Nd3 {[%clk 0:00:17.5]} 48... Nxc2 {[%clk 0:00:50.1]} 49. Nxc5 {[%clk 0:00:16.1]}
49... Kxg5 {[%clk 0:00:50.3]} 50. Nxe6+ {[%clk 0:00:16.8]} 50... Kg6 {[%clk
0:00:50.7]} 51. Kd6 {[%clk 0:00:15.3]} 51... Ne3 {[%clk 0:00:48.2]} 52. Nf4+
{[%clk 0:00:15.7]} 52... Kg5 {[%clk 0:00:46.2]} 53. Nd5 {[%clk 0:00:15.8]} 53...
Nc4+ {[%clk 0:00:46.2]} 54. Ke6 {[%clk 0:00:16.3]} 54... Kg4 {[%clk 0:00:44.8]}
1/2-1/2

[Event "Early-Titled-Tuesday-Blitz-March-12-2024"]
[Site "Chess.com"]
[Date "2024.03.12"]
[Round "8"]
[White "rasmussvane"]
[Black "Alexchess1984"]
[Result "1-0"]
[WhiteElo "2958"]
[BlackElo "2747"]
[TimeControl "180+1"]
[EndTime "9:26:42 PDT"]
[Termination "rasmussvane won by resignation"]

1. c4 {[%clk 0:02:52.2]} 1... g6 {[%clk 0:02:58.7]} 2. d4 {[%clk 0:02:46.8]}
2... Bg7 {[%clk 0:02:58.8]} 3. Nf3 {[%clk 0:02:46.7]} 3... Nf6 {[%clk
0:02:58.7]} 4. Nc3 {[%clk 0:02:44.9]} 4... d6 {[%clk 0:02:58.8]} 5. e4 {[%clk
0:02:45.1]} 5... O-O {[%clk 0:02:58.9]} 6. Bd3 {[%clk 0:02:43.6]} 6... Nc6
{[%clk 0:02:51.6]} 7. d5 {[%clk 0:02:38.6]} 7... Nb8 {[%clk 0:02:50.4]} 8. O-O
{[%clk 0:02:34.5]} 8... e6 {[%clk 0:02:50.4]} 9. dxe6 {[%clk 0:02:29.7]} 9...
Bxe6 {[%clk 0:02:49.7]} 10. h3 {[%clk 0:02:29.5]} 10... Nc6 {[%clk 0:02:48.1]}
11. Bf4 {[%clk 0:02:24.7]} 11... h6 {[%clk 0:02:41.5]} 12. Qd2 {[%clk
0:02:23.1]} 12... Kh7 {[%clk 0:02:41.3]} 13. Rad1 {[%clk 0:02:21.7]} 13... Nd7
{[%clk 0:02:40.9]} 14. b3 {[%clk 0:02:09.3]} 14... Nde5 {[%clk 0:02:40.3]} 15.
Be2 {[%clk 0:02:07.8]} 15... Nxf3+ {[%clk 0:02:17.9]} 16. Bxf3 {[%clk
0:02:08.7]} 16... Qf6 {[%clk 0:02:09.1]} 17. Nd5 {[%clk 0:01:33.4]} 17... Bxd5
{[%clk 0:02:08.8]} 18. exd5 {[%clk 0:01:10.3]} 18... Nd4 {[%clk 0:02:04]} 19.
Be4 {[%clk 0:01:09.4]} 19... Rae8 {[%clk 0:01:51.3]} 20. Rfe1 {[%clk 0:01:09.4]}
20... Nf5 {[%clk 0:01:50.7]} 21. g3 {[%clk 0:01:02.6]} 21... Nd4 {[%clk
0:01:09.5]} 22. Kg2 {[%clk 0:01:01.2]} 22... Kg8 {[%clk 0:00:58.4]} 23. h4
{[%clk 0:00:58.6]} 23... Nf5 {[%clk 0:00:48.2]} 24. Bxf5 {[%clk 0:00:53.9]}
24... gxf5 {[%clk 0:00:46.8]} 25. Qa5 {[%clk 0:00:50.7]} 25... Qc3 {[%clk
0:00:37.8]} 26. Qxc3 {[%clk 0:00:43.9]} 26... Bxc3 {[%clk 0:00:38.7]} 27. Re3
{[%clk 0:00:36.2]} 27... Rxe3 {[%clk 0:00:36.9]} 28. Bxe3 {[%clk 0:00:37.1]}
28... Kg7 {[%clk 0:00:34.6]} 29. Kf3 {[%clk 0:00:32.8]} 29... Be5 {[%clk
0:00:34.4]} 30. b4 {[%clk 0:00:25.3]} 30... b6 {[%clk 0:00:33.4]} 31. Rd3 {[%clk
0:00:25]} 31... Ra8 {[%clk 0:00:30]} 32. Ra3 {[%clk 0:00:22.8]} 32... a5 {[%clk
0:00:29.9]} 33. bxa5 {[%clk 0:00:16.5]} 33... Rxa5 {[%clk 0:00:29.3]} 34. Rxa5
{[%clk 0:00:16.4]} 34... bxa5 {[%clk 0:00:27.2]} 35. a4 {[%clk 0:00:16.8]} 35...
h5 {[%clk 0:00:16.7]} 36. Bd2 {[%clk 0:00:15.2]} 36... Bd4 {[%clk 0:00:10.4]}
37. Bxa5 {[%clk 0:00:14.8]} 1-0

[Event "Early-Titled-Tuesday-Blitz-March-12-2024"]
[Site "Chess.com"]
[Date "2024.03.12"]
[Round "8"]
[White "lilylg"]
[Black "LuisFSiles"]
[Result "0-1"]
[WhiteElo "2151"]
[BlackElo "2298"]
[TimeControl "180+1"]
[EndTime "9:26:45 PDT"]
[Termination "LuisFSiles won by resignation"]

1. d4 {[%clk 0:03:00.9]} 1... Nf6 {[%clk 0:02:59.7]} 2. c4 {[%clk 0:03:00.9]}
2... g6 {[%clk 0:03:00.1]} 3. d5 {[%clk 0:02:59.2]} 3... Bg7 {[%clk 0:02:58.8]}
4. Nc3 {[%clk 0:02:59.6]} 4... O-O {[%clk 0:02:58.8]} 5. e4 {[%clk 0:02:54.7]}
5... d6 {[%clk 0:02:59]} 6. h3 {[%clk 0:02:40.7]} 6... c5 {[%clk 0:02:59]} 7.
Nf3 {[%clk 0:02:39.7]} 7... e6 {[%clk 0:02:58.3]} 8. Be2 {[%clk 0:02:35.1]} 8...
exd5 {[%clk 0:02:55]} 9. exd5 {[%clk 0:02:36]} 9... Bf5 {[%clk 0:02:52.1]} 10.
O-O {[%clk 0:02:34.6]} 10... Ne4 {[%clk 0:02:52.5]} 11. Nxe4 {[%clk 0:02:12.4]}
11... Bxe4 {[%clk 0:02:53.4]} 12. Bd3 {[%clk 0:02:12.6]} 12... Bxf3 {[%clk
0:02:50.8]} 13. Qxf3 {[%clk 0:02:12.1]} 13... Nd7 {[%clk 0:02:50.7]} 14. Bf4
{[%clk 0:02:06.8]} 14... Ne5 {[%clk 0:02:49.9]} 15. Bxe5 {[%clk 0:01:43.3]}
15... Bxe5 {[%clk 0:02:49.4]} 16. Rab1 {[%clk 0:01:41.3]} 16... Qh4 {[%clk
0:02:37.6]} 17. b4 {[%clk 0:01:36.4]} 17... cxb4 {[%clk 0:02:30.2]} 18. Rxb4
{[%clk 0:01:35.9]} 18... b6 {[%clk 0:02:30.6]} 19. Rb3 {[%clk 0:01:25.6]} 19...
Rfe8 {[%clk 0:02:20.6]} 20. Re1 {[%clk 0:01:23]} 20... Bh2+ {[%clk 0:02:19.3]}
21. Kxh2 {[%clk 0:01:23.1]} 21... Rxe1 {[%clk 0:02:19.4]} 22. a4 {[%clk
0:01:12.6]} 22... Qe7 {[%clk 0:02:13.7]} 23. a5 {[%clk 0:01:10]} 23... Qe5+
{[%clk 0:02:11.5]} 24. g3 {[%clk 0:01:09.7]} 24... h5 {[%clk 0:01:32.9]} 25.
axb6 {[%clk 0:00:58.1]} 25... axb6 {[%clk 0:01:33.8]} 26. Rxb6 {[%clk
0:00:57.5]} 26... h4 {[%clk 0:01:34]} 27. Rb7 {[%clk 0:00:45]} 27... hxg3+
{[%clk 0:01:33.4]} 28. Kg2 {[%clk 0:00:44.9]} 28... f5 {[%clk 0:01:24.5]} 29.
Qxg3 {[%clk 0:00:34.6]} 29... Qxg3+ {[%clk 0:01:23]} 30. Kxg3 {[%clk 0:00:33.7]}
30... Ra3 {[%clk 0:01:21.9]} 31. Kf4 {[%clk 0:00:32.1]} 31... Rxd3 {[%clk
0:01:21.6]} 32. Kg5 {[%clk 0:00:32.5]} 32... Rxh3 {[%clk 0:01:05.7]} 33. Kf6
{[%clk 0:00:30.6]} 33... Re8 {[%clk 0:00:59]} 34. Rg7+ {[%clk 0:00:28.4]} 34...
Kh8 {[%clk 0:00:59.2]} 35. Kxg6 {[%clk 0:00:07.3]} 35... Rg8 {[%clk 0:00:58.5]}
36. Rxg8+ {[%clk 0:00:07]} 36... Kxg8 {[%clk 0:00:58.9]} 37. Kxf5 {[%clk
0:00:07.3]} 37... Rf3+ {[%clk 0:00:59]} 38. Ke6 {[%clk 0:00:07.6]} 38... Rc3
{[%clk 0:00:56.1]} 39. Kxd6 {[%clk 0:00:06.7]} 39... Rxc4 {[%clk 0:00:56.5]} 40.
f3 {[%clk 0:00:02.9]} 40... Rd4 {[%clk 0:00:50.7]} 41. Ke6 {[%clk 0:00:02.6]}
41... Kf8 {[%clk 0:00:50]} 42. d6 {[%clk 0:00:02.9]} 42... Ke8 {[%clk
0:00:49.1]} 43. Ke5 {[%clk 0:00:03.3]} 43... Rd1 {[%clk 0:00:47.9]} 44. f4
{[%clk 0:00:03.6]} 44... Kd7 {[%clk 0:00:47.9]} 45. f5 {[%clk 0:00:03.2]} 45...
Rxd6 {[%clk 0:00:46.2]} 46. f6 {[%clk 0:00:03.5]} 46... Rd1 {[%clk 0:00:46]} 47.
Kf5 {[%clk 0:00:02.3]} 47... Ke8 {[%clk 0:00:45.4]} 48. Kg6 {[%clk 0:00:03.2]}
48... Rg1+ {[%clk 0:00:45]} 49. Kh7 {[%clk 0:00:03.5]} 49... Kf7 {[%clk
0:00:43.9]} 50. Kh6 {[%clk 0:00:04]} 50... Kxf6 {[%clk 0:00:43.7]} 51. Kh7
{[%clk 0:00:04.5]} 0-1

[Event "Early-Titled-Tuesday-Blitz-March-12-2024"]
[Site "Chess.com"]
[Date "2024.03.12"]
[Round "8"]
[White "shirovin"]
[Black "PetrolulSah"]
[Result "0-1"]
[WhiteElo "2068"]
[BlackElo "2226"]
[TimeControl "180+1"]
[EndTime "9:26:46 PDT"]
[Termination "PetrolulSah won on time"]

1. d4 {[%clk 0:03:00.9]} 1... e5 {[%clk 0:03:00.4]} 2. c3 {[%clk 0:02:55.2]}
2... e4 {[%clk 0:02:57.7]} 3. Bf4 {[%clk 0:02:53]} 3... d5 {[%clk 0:02:57.9]} 4.
e3 {[%clk 0:02:52.7]} 4... Bd6 {[%clk 0:02:55.4]} 5. Bxd6 {[%clk 0:02:51.6]}
5... Qxd6 {[%clk 0:02:56.3]} 6. Ne2 {[%clk 0:02:50.5]} 6... Ne7 {[%clk
0:02:56.8]} 7. g3 {[%clk 0:02:50.2]} 7... O-O {[%clk 0:02:53.6]} 8. Nf4 {[%clk
0:02:38.5]} 8... Ng6 {[%clk 0:02:50.7]} 9. Nxg6 {[%clk 0:02:33.8]} 9... fxg6
{[%clk 0:02:48.6]} 10. Bg2 {[%clk 0:02:34.4]} 10... h5 {[%clk 0:02:46]} 11. h3
{[%clk 0:02:27.1]} 11... Qa6 {[%clk 0:02:44.9]} 12. Qe2 {[%clk 0:02:24.1]} 12...
Be6 {[%clk 0:02:44]} 13. Nd2 {[%clk 0:02:19.4]} 13... c5 {[%clk 0:02:44]} 14.
Qxa6 {[%clk 0:02:06.4]} 14... Nxa6 {[%clk 0:02:41.8]} 15. O-O {[%clk 0:02:03.6]}
15... b5 {[%clk 0:02:41.6]} 16. Nb3 {[%clk 0:01:55.9]} 16... c4 {[%clk
0:02:40.8]} 17. Nd2 {[%clk 0:01:53.5]} 17... Rab8 {[%clk 0:02:37.9]} 18. a4
{[%clk 0:01:50.5]} 18... b4 {[%clk 0:02:35.6]} 19. Rab1 {[%clk 0:01:35.6]} 19...
b3 {[%clk 0:02:29.2]} 20. f3 {[%clk 0:01:27.4]} 20... exf3 {[%clk 0:02:15.9]}
21. Nxf3 {[%clk 0:01:26.2]} 21... Bf5 {[%clk 0:02:01.2]} 22. Rbe1 {[%clk
0:01:24.6]} 22... Nc7 {[%clk 0:01:49.7]} 23. Ne5 {[%clk 0:01:17.4]} 23... Be6
{[%clk 0:01:46.7]} 24. Nc6 {[%clk 0:01:10.4]} 24... Rbe8 {[%clk 0:01:42.9]} 25.
Nxa7 {[%clk 0:01:04]} 25... Ra8 {[%clk 0:01:32.6]} 26. Nb5 {[%clk 0:01:03]}
26... Nxb5 {[%clk 0:01:29.8]} 27. axb5 {[%clk 0:01:02.1]} 27... Ra2 {[%clk
0:01:23.1]} 28. Re2 {[%clk 0:00:51.6]} 28... Rxf1+ {[%clk 0:01:17.8]} 29. Kxf1
{[%clk 0:00:50.6]} 29... Kf7 {[%clk 0:01:17.4]} 30. e4 {[%clk 0:00:49.6]} 30...
dxe4 {[%clk 0:01:15]} 31. Bxe4 {[%clk 0:00:49.1]} 31... Bxh3+ {[%clk 0:01:14.8]}
32. Kf2 {[%clk 0:00:47.8]} 32... Bg4 {[%clk 0:01:13.6]} 33. Rd2 {[%clk
0:00:46.3]} 33... Ke6 {[%clk 0:01:09.5]} 34. b6 {[%clk 0:00:45.1]} 34... Kd7
{[%clk 0:01:09.5]} 35. d5 {[%clk 0:00:39]} 35... Ra6 {[%clk 0:01:07.7]} 36. b7
{[%clk 0:00:37.8]} 36... Rb6 {[%clk 0:01:06.8]} 37. d6 {[%clk 0:00:36.6]} 37...
Bf5 {[%clk 0:01:04.9]} 38. Bf3 {[%clk 0:00:32.2]} 38... g5 {[%clk 0:00:59.7]}
39. Rd4 {[%clk 0:00:21.2]} 39... g4 {[%clk 0:00:59]} 40. Bg2 {[%clk 0:00:19.4]}
40... g6 {[%clk 0:00:58.8]} 41. Bh1 {[%clk 0:00:13]} 41... g5 {[%clk 0:00:58.3]}
42. Bg2 {[%clk 0:00:12.3]} 42... Be6 {[%clk 0:00:58.3]} 43. Be4 {[%clk
0:00:10.9]} 43... h4 {[%clk 0:00:58.4]} 44. Bg2 {[%clk 0:00:08.6]} 44... h3
{[%clk 0:00:58.5]} 45. Bh1 {[%clk 0:00:08.8]} 45... h2 {[%clk 0:00:56.9]} 46.
Bg2 {[%clk 0:00:06.9]} 46... Bf5 {[%clk 0:00:56.1]} 47. Rd5 {[%clk 0:00:06.1]}
47... Be6 {[%clk 0:00:55.5]} 48. Rxg5 {[%clk 0:00:05.1]} 48... Kxd6 {[%clk
0:00:53.4]} 49. Rg7 {[%clk 0:00:03.8]} 49... Bd7 {[%clk 0:00:52.2]} 50. Rg8
{[%clk 0:00:03.1]} 50... Kc7 {[%clk 0:00:50.9]} 51. Rg7 {[%clk 0:00:01.3]} 51...
Rb5 {[%clk 0:00:49.4]} 0-1

[Event "Early-Titled-Tuesday-Blitz-March-12-2024"]
[Site "Chess.com"]
[Date "2024.03.12"]
[Round "8"]
[White "masnyszachistaaa"]
[Black "Cheer_Down"]
[Result "0-1"]
[WhiteElo "2543"]
[BlackElo "2437"]
[TimeControl "180+1"]
[EndTime "9:26:49 PDT"]
[Termination "Cheer_Down won on time"]

1. e4 {[%clk 0:02:58.8]} 1... e5 {[%clk 0:03:00]} 2. Nf3 {[%clk 0:02:57.9]} 2...
Nc6 {[%clk 0:03:00]} 3. d4 {[%clk 0:02:53.5]} 3... exd4 {[%clk 0:02:59.6]} 4.
Bc4 {[%clk 0:02:52.1]} 4... Nf6 {[%clk 0:02:58.7]} 5. e5 {[%clk 0:02:50.9]} 5...
Ne4 {[%clk 0:02:59]} 6. Qe2 {[%clk 0:02:48.9]} 6... Nc5 {[%clk 0:02:57.5]} 7.
O-O {[%clk 0:02:46.5]} 7... Be7 {[%clk 0:02:54.2]} 8. Rd1 {[%clk 0:02:44.9]}
8... Ne6 {[%clk 0:02:52.4]} 9. Bxe6 {[%clk 0:02:44]} 9... fxe6 {[%clk
0:02:49.2]} 10. Nxd4 {[%clk 0:02:43.5]} 10... Nxd4 {[%clk 0:02:49]} 11. Rxd4
{[%clk 0:02:44.4]} 11... O-O {[%clk 0:02:48.7]} 12. Rg4 {[%clk 0:02:29.3]} 12...
b6 {[%clk 0:02:35.7]} 13. Nc3 {[%clk 0:02:20.3]} 13... Bb7 {[%clk 0:02:35.5]}
14. Ne4 {[%clk 0:02:18.7]} 14... Qe8 {[%clk 0:02:25]} 15. Bh6 {[%clk 0:02:05.6]}
15... Rf7 {[%clk 0:02:25.1]} 16. Rd1 {[%clk 0:01:39.8]} 16... Kh8 {[%clk
0:02:20.1]} 17. Bg5 {[%clk 0:01:39.2]} 17... h6 {[%clk 0:02:12.4]} 18. Bc1
{[%clk 0:01:26.8]} 18... Bc6 {[%clk 0:02:00.2]} 19. c4 {[%clk 0:01:23.1]} 19...
Qf8 {[%clk 0:01:52.2]} 20. Rd3 {[%clk 0:01:21.9]} 20... Rf5 {[%clk 0:01:47.7]}
21. f4 {[%clk 0:01:17.7]} 21... Qf7 {[%clk 0:01:36.2]} 22. Ng3 {[%clk
0:01:05.9]} 22... Bc5+ {[%clk 0:01:25.9]} 23. Kh1 {[%clk 0:01:04.8]} 23... Rf8
{[%clk 0:01:20]} 24. Nxf5 {[%clk 0:01:04.5]} 24... exf5 {[%clk 0:01:19.9]} 25.
Rgg3 {[%clk 0:01:01.1]} 25... Qxc4 {[%clk 0:01:19.7]} 26. Qd1 {[%clk 0:00:40.5]}
26... Qxa2 {[%clk 0:01:17.7]} 27. Qh5 {[%clk 0:00:33.9]} 27... Qf7 {[%clk
0:01:13.4]} 28. Rg6 {[%clk 0:00:26]} 28... Kg8 {[%clk 0:00:35.2]} 29. Qxh6
{[%clk 0:00:20.2]} 29... Re8 {[%clk 0:00:26.5]} 30. Rdg3 {[%clk 0:00:17.2]}
30... Bf8 {[%clk 0:00:26.5]} 31. Rh3 {[%clk 0:00:14.9]} 31... Qc4 {[%clk
0:00:25.7]} 32. Qh7+ {[%clk 0:00:02.2]} 32... Kf7 {[%clk 0:00:25.8]} 33. Rxg7+
{[%clk 0:00:02.2]} 33... Bxg7 {[%clk 0:00:21.2]} 34. Qxf5+ {[%clk 0:00:02.4]}
34... Ke7 {[%clk 0:00:21.1]} 35. Qg5+ {[%clk 0:00:02.5]} 35... Kf7 {[%clk
0:00:20.5]} 36. Qf5+ {[%clk 0:00:02.4]} 36... Kg8 {[%clk 0:00:18.3]} 37. Qh7+
{[%clk 0:00:01.9]} 37... Kf8 {[%clk 0:00:17.7]} 38. Qf5+ {[%clk 0:00:01.7]}
38... Ke7 {[%clk 0:00:17.2]} 0-1

[Event "Early-Titled-Tuesday-Blitz-March-12-2024"]
[Site "Chess.com"]
[Date "2024.03.12"]
[Round "8"]
[White "BeardedNM"]
[Black "IsaqueGoncalvesSanto"]
[Result "1-0"]
[WhiteElo "2237"]
[BlackElo "1816"]
[TimeControl "180+1"]
[EndTime "9:26:49 PDT"]
[Termination "BeardedNM won on time"]

1. e4 {[%clk 0:03:00.9]} 1... e6 {[%clk 0:02:51.9]} 2. d4 {[%clk 0:03:00.7]}
2... d5 {[%clk 0:02:51.7]} 3. e5 {[%clk 0:03:01.2]} 3... c5 {[%clk 0:02:51.4]}
4. c3 {[%clk 0:03:01.8]} 4... Nc6 {[%clk 0:02:51.2]} 5. Nf3 {[%clk 0:03:02.4]}
5... Qb6 {[%clk 0:02:51.4]} 6. a3 {[%clk 0:03:01.7]} 6... c4 {[%clk 0:02:50.7]}
7. Nbd2 {[%clk 0:03:01.3]} 7... Na5 {[%clk 0:02:50]} 8. g3 {[%clk 0:03:01.9]}
8... Bd7 {[%clk 0:02:49.9]} 9. Bg2 {[%clk 0:03:02.4]} 9... Ne7 {[%clk
0:02:49.8]} 10. O-O {[%clk 0:03:02.9]} 10... Nc8 {[%clk 0:02:49]} 11. Rb1 {[%clk
0:02:56.2]} 11... Qc7 {[%clk 0:02:45.7]} 12. Ne1 {[%clk 0:02:55.7]} 12... Nb6
{[%clk 0:02:44.8]} 13. Qf3 {[%clk 0:02:45.9]} 13... Ba4 {[%clk 0:02:39.4]} 14.
h4 {[%clk 0:02:41.1]} 14... h6 {[%clk 0:02:37.3]} 15. Bh3 {[%clk 0:02:36.4]}
15... O-O-O {[%clk 0:02:16.6]} 16. Kh2 {[%clk 0:01:57]} 16... Kb8 {[%clk
0:02:06.9]} 17. Qe2 {[%clk 0:01:54.6]} 17... g5 {[%clk 0:02:04.3]} 18. h5 {[%clk
0:01:53.3]} 18... Bg7 {[%clk 0:01:55.2]} 19. f4 {[%clk 0:01:42.3]} 19... Rde8
{[%clk 0:01:46.8]} 20. Ndf3 {[%clk 0:01:36.7]} 20... f6 {[%clk 0:01:40.9]} 21.
exf6 {[%clk 0:01:28.3]} 21... Bxf6 {[%clk 0:01:40.7]} 22. fxg5 {[%clk
0:01:26.1]} 22... hxg5 {[%clk 0:01:38.8]} 23. Nxg5 {[%clk 0:01:26.3]} 23... Be7
{[%clk 0:00:56.1]} 24. Nxe6 {[%clk 0:01:10.8]} 24... Qc6 {[%clk 0:00:47.6]} 25.
Ng7 {[%clk 0:00:49.7]} 25... Bd6 {[%clk 0:00:25.1]} 26. Nxe8 {[%clk 0:00:43.4]}
26... Rxe8 {[%clk 0:00:24.4]} 27. Qf2 {[%clk 0:00:41.3]} 27... Nb3 {[%clk
0:00:17.5]} 28. Bf4 {[%clk 0:00:38.4]} 28... Bxf4 {[%clk 0:00:11.2]} 29. Qxf4+
{[%clk 0:00:39.3]} 29... Ka8 {[%clk 0:00:10.9]} 30. Nf3 {[%clk 0:00:28.2]} 30...
Nd7 {[%clk 0:00:07.7]} 31. Rbe1 {[%clk 0:00:22.3]} 31... Rh8 {[%clk 0:00:06.7]}
32. Qf7 {[%clk 0:00:16.1]} 32... Nb8 {[%clk 0:00:03.9]} 33. Ne5 {[%clk
0:00:12.7]} 33... Qh6 {[%clk 0:00:02.7]} 34. Bg4 {[%clk 0:00:08.6]} 34... Qd2+
{[%clk 0:00:01]} 35. Re2 {[%clk 0:00:08.6]} 1-0